fUST/lending_fUST_20260312
["ID","MTS","AMOUNT","RATE_DAILY","PERIOD"]
[408209570,1773244882028,-300.0,8.698e-05,2]
[408209571,1773244882057,-300.0,8.699e-05,2]
[408209572,1773244882082,-300.0,8.699e-05,2]
[408209573,1773244882108,-300.0,8.699e-05,2]
[408209574,1773244882133,-659.0,8.699e-05,2]
[408209575,1773244882152,-300.0,8.699e-05,2]
[408209576,1773244882167,-242.0,8.699e-05,2]
[408209577,1773244882176,-58.0,8.7e-05,2]
[408209578,1773244882187,-135.46594294,8.7e-05,2]
[408209579,1773244882196,-164.53405706,8.7e-05,2]
[408209580,1773244882211,-300.0,8.7e-05,2]
[408209581,1773244882223,-659.0,8.7e-05,2]
[408209582,1773244882235,-9.25990968,8.7e-05,2]
[408209587,1773245403689,163.71,2e-05,2]
[408209588,1773245404073,163.71,2e-05,2]
[408209589,1773245404445,163.71,2e-05,2]
[408209590,1773245404833,163.71,2e-05,2]
[408209591,1773245405207,163.71,2e-05,2]
[408209592,1773245405578,163.71,2e-05,2]
[408209593,1773245405955,163.71,2e-05,2]
[408209594,1773245406329,163.71,2e-05,2]
[408209595,1773245406698,163.71,2e-05,2]
[408209596,1773245407065,163.71,2e-05,2]
[408209597,1773245407433,163.71,2e-05,2]
[408209598,1773245407809,163.71,2e-05,2]
[408209599,1773245408477,163.71,2e-05,2]
[408209600,1773245408578,163.71,2e-05,2]
[408209601,1773245408957,163.71,2e-05,2]
[408209602,1773245409345,163.71,2e-05,2]
[408209603,1773245409770,163.71,2e-05,2]
[408209604,1773245410139,163.71,2e-05,2]
[408209605,1773245410546,163.71,2e-05,2]
[408209606,1773245410954,163.71,2e-05,2]
[408209607,1773245411352,163.71,2e-05,2]
[408209608,1773245411726,163.71,2e-05,2]
[408209609,1773245412522,163.71,2e-05,2]
[408209610,1773245412671,163.71,2e-05,2]
[408209611,1773245412858,163.71,2e-05,2]
[408209612,1773245413861,163.71,2e-05,2]
[408209613,1773245414306,163.71,2e-05,2]
[408209614,1773245414382,5000.0,2.001e-05,2]
[408209615,1773245414667,163.71,2e-05,2]
[408209616,1773245415058,163.71,2e-05,2]
[408209617,1773245415459,163.71,2e-05,2]
[408209618,1773245415831,163.71,2e-05,2]
[408209619,1773245416205,163.71,2e-05,2]
[408209620,1773245416652,163.71,2e-05,2]
[408209621,1773245417032,163.71,2e-05,2]
[408209622,1773245417408,163.71,2e-05,2]
[408209623,1773245417787,163.71,2e-05,2]
[408209624,1773245418167,163.71,2e-05,2]
[408209625,1773245418553,163.71,2e-05,2]
[408209626,1773245418909,163.71,2e-05,2]
[408209627,1773245419389,163.71,2e-05,2]
[408209628,1773245419770,163.71,2e-05,2]
[408209629,1773245420147,163.71,2e-05,2]
[408209630,1773245420544,163.71,2e-05,2]
[408209631,1773245420906,163.71,2e-05,2]
[408209632,1773245421541,163.71,2e-05,2]
[408209633,1773245421665,163.71,2e-05,2]
[408209634,1773245422146,163.71,2e-05,2]
[408209635,1773245422518,163.71,2e-05,2]
[408209636,1773245423309,163.71,2e-05,2]
[408209637,1773245423345,163.71,2e-05,2]
[408209657,1773245431984,-3354.53160749,3.713e-05,2]
[408209759,1773245438189,-1564.6252778,3.713e-05,2]
[408209761,1773245438198,-1359.24179682,3.751e-05,2]
[408209763,1773245438209,-2368.01811286,3.751e-05,2]
[408209765,1773245438218,-197.49006496,3.77e-05,2]
[408209767,1773245438227,-166.86234,3.866e-05,2]
[408209769,1773245438236,-300.0,3.942e-05,2]
[408209771,1773245438245,-300.0,3.942e-05,2]
[408209773,1773245438255,-300.0,3.942e-05,2]
[408209775,1773245438264,-300.0,3.942e-05,2]
[408209777,1773245438273,-300.0,3.942e-05,2]
[408209779,1773245438282,-300.0,3.942e-05,2]
[408209781,1773245438291,-300.0,3.942e-05,2]
[408209783,1773245438300,-300.0,3.942e-05,2]
[408209785,1773245438310,-300.0,3.942e-05,2]
[408209787,1773245438319,-300.0,3.942e-05,2]
[408209789,1773245438329,-300.0,3.942e-05,2]
[408209791,1773245438338,-300.0,3.942e-05,2]
[408209793,1773245438347,-300.0,3.942e-05,2]
[408209795,1773245438357,-300.0,3.942e-05,2]
[408209797,1773245438366,-300.0,3.942e-05,2]
[408209799,1773245438376,-500.0,3.95e-05,2]
[408209801,1773245438385,-500.0,3.95e-05,2]
[408209802,1773245438394,-500.0,4.498e-05,2]
[408209803,1773245438404,-233.03827666,5.77e-05,2]
[408209804,1773245438413,-268.58648835,7.77e-05,2]
[408209805,1773245438422,-1217.7762863,7.859e-05,2]
[408209806,1773245438431,-448.4513902,8.6e-05,2]
[408209807,1773245438441,-244.8165779,8.7e-05,2]
[408209808,1773245438450,-3316.40735117,8.7e-05,2]
[408209809,1773245438460,-3654.59482849,8.7e-05,2]
[408209810,1773245438469,-1297.89895253,8.7e-05,2]
[408209811,1773245438480,-2050.46765679,8.7e-05,2]
[408209812,1773245438490,-3992.78230589,8.7e-05,2]
[408209813,1773245438500,-443.70991748,8.7e-05,2]
[408209814,1773245438509,-625.19449003,8.7e-05,2]
[408209815,1773245438518,-500.0,8.783e-05,2]
[408209816,1773245438527,-171.511,8.783e-05,2]
[408209817,1773245438536,-5743.44192096,8.79e-05,2]
[408210091,1773245443314,-5000.0,3.676e-05,2]
[408210092,1773245443323,-1601.99972582,8.702e-05,2]
[408210093,1773245443334,-12627.66902161,8.702e-05,2]
[408210098,1773245446099,-5914.82565904,8.702e-05,2]
[408210099,1773245447954,-15717.10774133,8.702e-05,2]
[408210101,1773246003023,501.32,2e-05,2]
[408210102,1773246003392,501.32,2e-05,2]
[408210103,1773246003768,501.32,2e-05,2]
[408210104,1773246004134,501.32,2e-05,2]
[408210105,1773246004510,501.32,2e-05,2]
[408210106,1773246004912,501.32,2e-05,2]
[408210107,1773246005275,501.32,2e-05,2]
[408210108,1773246005632,501.32,2e-05,2]
[408210109,1773246006007,501.32,2e-05,2]
[408210110,1773246006404,501.32,2e-05,2]
[408210111,1773246006769,501.32,2e-05,2]
[408210112,1773246007129,501.32,2e-05,2]
[408210113,1773246008292,501.32,2e-05,2]
[408210114,1773246008664,501.32,2e-05,2]
[408210115,1773246009049,501.32,2e-05,2]
[408210116,1773246009428,501.32,2e-05,2]
[408210117,1773246010051,501.32,2e-05,2]
[408210118,1773246010197,501.32,2e-05,2]
[408210119,1773246011159,501.32,2e-05,2]
[408210120,1773246011349,501.32,2e-05,2]
[408210121,1773246011722,501.32,2e-05,2]
[408210122,1773246012107,501.32,2e-05,2]
[408210123,1773246012468,501.32,2e-05,2]
[408210124,1773246012753,5000.0,2.001e-05,2]
[408210125,1773246013429,501.32,2e-05,2]
[408210126,1773246013787,501.32,2e-05,2]
[408210127,1773246014163,501.32,2e-05,2]
[408210128,1773246014568,501.32,2e-05,2]
[408210129,1773246014951,501.32,2e-05,2]
[408210130,1773246015338,501.32,2e-05,2]
[408210131,1773246015756,501.32,2e-05,2]
[408210132,1773246016141,501.32,2e-05,2]
[408210133,1773246016540,501.32,2e-05,2]
[408210134,1773246016927,501.32,2e-05,2]
[408210135,1773246017297,501.32,2e-05,2]
[408210136,1773246017682,501.32,2e-05,2]
[408210137,1773246018691,501.32,2e-05,2]
[408210138,1773246019174,501.32,2e-05,2]
[408210139,1773246019552,501.32,2e-05,2]
[408210140,1773246019929,501.32,2e-05,2]
[408210141,1773246020324,501.32,2e-05,2]
[408210142,1773246020696,501.32,2e-05,2]
[408210143,1773246021080,501.32,2e-05,2]
[408210144,1773246022070,501.32,2e-05,2]
[408210145,1773246022104,501.32,2e-05,2]
[408210146,1773246022240,501.32,2e-05,2]
[408210147,1773246022610,501.32,2e-05,2]
[408210148,1773246022975,501.32,2e-05,2]
[408210149,1773246023344,501.32,2e-05,2]
[408210150,1773246023726,501.32,2e-05,2]
[408210151,1773246024085,501.32,2e-05,2]
[408210153,1773246606199,161.92,2e-05,2]
[408210177,1773246632166,-965.89096482,5.044e-05,2]
[408210179,1773246632178,-4034.10903518,5.044e-05,2]
[408210180,1773246632187,-262.39386038,5.069e-05,2]
[408210181,1773246632197,-1200.0,5.094e-05,2]
[408210182,1773246632206,-5000.0,5.095e-05,2]
[408210183,1773246632215,-300.0,5.195e-05,2]
[408210184,1773246632225,-300.0,5.195e-05,2]
[408210185,1773246632234,-300.0,5.195e-05,2]
[408210186,1773246632243,-156.0,5.195e-05,2]
[408210187,1773246632253,-500.0,5.2e-05,2]
[408210188,1773246632262,-500.0,5.2e-05,2]
[408210189,1773246632271,-511.73382063,5.2e-05,2]
[408210190,1773246632280,-500.0,5.2e-05,2]
[408210191,1773246632289,-500.0,5.2e-05,2]
[408210192,1773246632298,-511.31234387,5.2e-05,2]
[408210193,1773246632307,-300.0,5.303e-05,2]
[408210194,1773246632318,-300.0,5.303e-05,2]
[408210195,1773246632327,-300.0,5.303e-05,2]
[408210196,1773246632336,-300.0,5.303e-05,2]
[408210197,1773246632345,-300.0,5.303e-05,2]
[408210198,1773246632354,-300.0,5.303e-05,2]
[408210199,1773246632363,-300.0,5.303e-05,2]
[408210200,1773246632373,-300.0,5.303e-05,2]
[408210201,1773246632382,-300.0,5.303e-05,2]
[408210202,1773246632390,-300.0,5.303e-05,2]
[408210203,1773246632401,-300.0,5.303e-05,2]
[408210204,1773246632412,-300.0,5.303e-05,2]
[408210205,1773246632422,-300.0,5.303e-05,2]
[408210206,1773246632432,-300.0,5.303e-05,2]
[408210207,1773246632442,-300.0,5.303e-05,2]
[408210208,1773246632451,-480.0,5.603e-05,2]
[408210209,1773246632460,-234.0,5.715e-05,2]
[408210210,1773246632471,-420.0,5.715e-05,2]
[408210211,1773246632480,-210.811463,6.148e-05,2]
[408210212,1773246632489,-465.0,6.286e-05,2]
[408210213,1773246632498,-966.34638838,6.975e-05,2]
[408210214,1773246632507,-334.763085,6.99e-05,2]
[408210215,1773246632519,-2409.53211183,7.046e-05,2]
[408210216,1773246632529,-600.0,7.057e-05,2]
[408210217,1773246632539,-309.62475525,7.069e-05,2]
[408210218,1773246632548,-1880.34058294,7.075e-05,2]
[408210219,1773246632557,-334.763085,7.077e-05,2]
[408210220,1773246632566,-500.0,7.093e-05,2]
[408210221,1773246632576,-500.0,7.093e-05,2]
[408210222,1773246632586,-500.0,7.093e-05,2]
[408210223,1773246632595,-500.0,7.093e-05,2]
[408210224,1773246632605,-500.0,7.112e-05,2]
[408210225,1773246632615,-500.0,7.112e-05,2]
[408210226,1773246632624,-500.0,7.112e-05,2]
[408210227,1773246632634,-500.0,7.112e-05,2]
[408210228,1773246632643,-500.0,7.112e-05,2]
[408210229,1773246632653,-500.0,7.112e-05,2]
[408210230,1773246632662,-500.0,7.112e-05,2]
[408210231,1773246632671,-500.0,7.112e-05,2]
[408210232,1773246632681,-500.0,7.112e-05,2]
[408210233,1773246632690,-500.0,7.112e-05,2]
[408210234,1773246632699,-250.0,7.112e-05,2]
[408210235,1773246632709,-159.94151658,7.112e-05,2]
[408210236,1773246632721,-340.05848342,7.112e-05,2]
[408210237,1773246632731,-500.0,7.112e-05,2]
[408210238,1773246632740,-159.94151658,7.112e-05,2]
[408210239,1773246633242,-340.05848342,7.112e-05,2]
[408210240,1773246633252,-500.0,7.112e-05,2]
[408210241,1773246633262,-500.0,7.112e-05,2]
[408210242,1773246633271,-500.0,7.112e-05,2]
[408210243,1773246633280,-500.0,7.112e-05,2]
[408210244,1773246633290,-500.0,7.112e-05,2]
[408210245,1773246633299,-500.0,7.112e-05,2]
[408210246,1773246633309,-285.4585862,7.112e-05,2]
[408210247,1773246633319,-500.0,7.112e-05,2]
[408210248,1773246633328,-500.0,7.112e-05,2]
[408210249,1773246633338,-500.0,7.112e-05,2]
[408210250,1773246633348,-500.0,7.112e-05,2]
[408210251,1773246633358,-500.0,7.112e-05,2]
[408210252,1773246633367,-500.0,7.112e-05,2]
[408210253,1773246633378,-500.0,7.112e-05,2]
[408210254,1773246633388,-500.0,7.112e-05,2]
[408210255,1773246633397,-576.21059286,7.112e-05,2]
[408210256,1773246633407,-500.0,7.112e-05,2]
[408210257,1773246633417,-500.0,7.112e-05,2]
[408210258,1773246633427,-500.0,7.112e-05,2]
[408210259,1773246633436,-500.0,7.112e-05,2]
[408210260,1773246633446,-500.0,7.112e-05,2]
[408210261,1773246633456,-500.0,7.112e-05,2]
[408210262,1773246633466,-500.0,7.112e-05,2]
[408210263,1773246633475,-500.0,7.112e-05,2]
[408210264,1773246633485,-500.0,7.112e-05,2]
[408210265,1773246633495,-500.0,7.112e-05,2]
[408210266,1773246633505,-500.0,7.112e-05,2]
[408210267,1773246633515,-500.0,7.112e-05,2]
[408210268,1773246633524,-500.0,7.112e-05,2]
[408210269,1773246633534,-500.0,7.112e-05,2]
[408210270,1773246633544,-500.0,7.112e-05,2]
[408210271,1773246633554,-500.0,7.112e-05,2]
[408210272,1773246633563,-294.75082683,7.112e-05,2]
[408210273,1773246633573,-500.0,7.112e-05,2]
[408210274,1773246633582,-500.0,7.112e-05,2]
[408210275,1773246633592,-500.0,7.112e-05,2]
[408210276,1773246633602,-500.0,7.112e-05,2]
[408210277,1773246633612,-500.0,7.112e-05,2]
[408210278,1773246633622,-500.0,7.112e-05,2]
[408210279,1773246633632,-500.0,7.112e-05,2]
[408210280,1773246633642,-500.0,7.112e-05,2]
[408210281,1773246633652,-500.0,7.112e-05,2]
[408210282,1773246633663,-500.0,7.112e-05,2]
[408210283,1773246633673,-500.0,7.112e-05,2]
[408210284,1773246633683,-500.0,7.112e-05,2]
[408210285,1773246633693,-500.0,7.112e-05,2]
[408210286,1773246633703,-500.0,7.112e-05,2]
[408210287,1773246633713,-500.0,7.112e-05,2]
[408210288,1773246633725,-500.0,7.112e-05,2]
[408210289,1773246633735,-500.0,7.112e-05,2]
[408210290,1773246633746,-500.0,7.112e-05,2]
[408210291,1773246633756,-500.0,7.112e-05,2]
[408210292,1773246633767,-500.0,7.112e-05,2]
[408210293,1773246633777,-500.0,7.112e-05,2]
[408210294,1773246633787,-500.0,7.112e-05,2]
[408210295,1773246633798,-500.0,7.112e-05,2]
[408210296,1773246633809,-500.0,7.112e-05,2]
[408210297,1773246633821,-500.0,7.112e-05,2]
[408210298,1773246633830,-500.0,7.112e-05,2]
[408210299,1773246633840,-500.0,7.112e-05,2]
[408210300,1773246633851,-500.0,7.112e-05,2]
[408210301,1773246633860,-500.0,7.112e-05,2]
[408210302,1773246633870,-500.0,7.112e-05,2]
[408210303,1773246633880,-500.0,7.112e-05,2]
[408210304,1773246633890,-500.0,7.112e-05,2]
[408210305,1773246633899,-500.0,7.112e-05,2]
[408210306,1773246634152,-208.76395104,7.112e-05,2]
[408210307,1773246634188,-500.0,7.112e-05,2]
[408210308,1773246634198,-207.46508194,7.112e-05,2]
[408210309,1773246634207,-500.0,7.112e-05,2]
[408210310,1773246634216,-500.0,7.112e-05,2]
[408210311,1773246634225,-500.0,7.112e-05,2]
[408210312,1773246634235,-308.42865237,7.112e-05,2]
[408210317,1773246638280,-500.0,7.113e-05,2]
[408210318,1773246638290,-86.23792826,7.113e-05,2]
[408210319,1773246638301,-413.76207174,7.113e-05,2]
[408210320,1773246638310,-37939.73226951,7.135e-05,2]
[408210321,1773246638319,-2794.3347775,7.139e-05,2]
[408210322,1773246638328,-5473.01698517,7.146e-05,2]
[408210323,1773246638337,-334.763085,7.165e-05,2]
[408210324,1773246638346,-151.0,7.245e-05,2]
[408210325,1773246638354,-184.765634,7.245e-05,2]
[408210326,1773246638363,-151.0,7.245e-05,2]
[408210327,1773246638372,-151.0,7.245e-05,2]
[408210328,1773246638381,-151.0,7.245e-05,2]
[408210329,1773246638391,-151.0,7.245e-05,2]
[408210330,1773246638400,-151.0,7.245e-05,2]
[408210331,1773246638409,-151.0,7.245e-05,2]
[408210332,1773246638418,-272.91413988,7.245e-05,2]
[408210333,1773246638427,-5930.59700812,7.246e-05,2]
[408210334,1773246638436,-334.763085,7.252e-05,2]
[408210335,1773246638445,-235.47,7.258e-05,2]
[408210336,1773246638454,-334.763085,7.339e-05,2]
[408210337,1773246638464,-6079.69981285,7.346e-05,2]
[408210338,1773246638472,-210.811463,7.442e-05,2]
[408210339,1773246638481,-6686.3826406,7.446e-05,2]
[408210340,1773246638493,-2618.9492547,7.478e-05,2]
[408210341,1773246638503,-1000.0,7.641e-05,2]
[408210342,1773246638514,-1000.0,7.641e-05,2]
[408210343,1773246638524,-974.95050482,7.641e-05,2]
[408210344,1773246638534,-1000.0,7.641e-05,2]
[408210345,1773246638544,-200.04136635,7.661e-05,2]
[408210346,1773246638553,-1000.0,7.661e-05,2]
[408210347,1773246638562,-720.0,7.763e-05,2]
[408210348,1773246638571,-2964.2648858,7.767e-05,2]
[408210349,1773246638581,-171.03568537,7.816e-05,2]
[408210350,1773246638590,-295.38033256,7.816e-05,2]
[408210351,1773246638599,-290.76066512,8.035e-05,2]
[408210352,1773246638608,-1500.0,8.188e-05,2]
[408210353,1773246638618,-1500.0,8.188e-05,2]
[408210354,1773246638627,-1500.0,8.188e-05,2]
[408210355,1773246638636,-1500.0,8.208e-05,2]
[408210356,1773246638645,-3345.25690133,8.209e-05,2]
[408210357,1773246638655,-500.0,8.219e-05,2]
[408210358,1773246638664,-523.42714875,8.219e-05,2]
[408210359,1773246638673,-500.0,8.219e-05,2]
[408210360,1773246638682,-290.76066512,8.309e-05,2]
[408210361,1773246638692,-500.0,8.493e-05,2]
[408210362,1773246638701,-786.1,8.51e-05,2]
[408210363,1773246638710,-864.0,8.539e-05,2]
[408210364,1773246638719,-2525.51924904,8.6e-05,2]
[408210365,1773246638738,-7065.84254851,8.6e-05,2]
[408210366,1773246638750,-6236.03101217,8.6e-05,2]
[408210367,1773246638760,-6426.72513901,8.6e-05,2]
[408210368,1773246638769,-5787.60772962,8.6e-05,2]
[408210369,1773246638779,-242.30055427,8.638e-05,2]
[408210370,1773246638789,-1521.05964019,8.689e-05,2]
[408210371,1773246638799,-111171.41639173,8.702e-05,2]
[408210372,1773246638808,-50403.57694769,8.702e-05,2]
[408210373,1773246638818,-308683.34648188,8.702e-05,2]
[408210374,1773246638828,-2000.0,8.736e-05,2]
[408210375,1773246638838,-2000.0,8.736e-05,2]
[408210376,1773246638847,-2000.0,8.736e-05,2]
[408210377,1773246638857,-690.0,8.745e-05,2]
[408210378,1773246638867,-690.0,8.745e-05,2]
[408210379,1773246638878,-351.0,8.745e-05,2]
[408210380,1773246638887,-690.0,8.745e-05,2]
[408210381,1773246638897,-351.0,8.745e-05,2]
[408210382,1773246638906,-690.0,8.745e-05,2]
[408210383,1773246638916,-338.0,8.745e-05,2]
[408210384,1773246638925,-351.0,8.745e-05,2]
[408210385,1773246638935,-690.0,8.745e-05,2]
[408210386,1773246638944,-338.0,8.745e-05,2]
[408210387,1773246638954,-338.0,8.745e-05,2]
[408210388,1773246638963,-690.0,8.745e-05,2]
[408210389,1773246638973,-338.0,8.745e-05,2]
[408210390,1773246638982,-690.0,8.745e-05,2]
[408210391,1773246638991,-338.0,8.745e-05,2]
[408210392,1773246639001,-690.0,8.745e-05,2]
[408210393,1773246639010,-338.0,8.745e-05,2]
[408210394,1773246639020,-690.0,8.745e-05,2]
[408210395,1773246639030,-338.0,8.745e-05,2]
[408210396,1773246639039,-351.0,8.745e-05,2]
[408210397,1773246639049,-690.0,8.745e-05,2]
[408210398,1773246639058,-338.0,8.745e-05,2]
[408210399,1773246639067,-351.0,8.745e-05,2]
[408210400,1773246639078,-338.0,8.745e-05,2]
[408210401,1773246639087,-690.0,8.745e-05,2]
[408210402,1773246639100,-351.0,8.745e-05,2]
[408210403,1773246639110,-351.0,8.745e-05,2]
[408210404,1773246639119,-455.12652482,8.745e-05,2]
[408210405,1773246639130,-351.0,8.745e-05,2]
[408210406,1773246639139,-544.8132352,8.745e-05,2]
[408210407,1773246639149,-351.0,8.745e-05,2]
[408210408,1773246639159,-351.0,8.745e-05,2]
[408210409,1773246639169,-467.67273349,8.745e-05,2]
[408210410,1773246639179,-2000.0,8.756e-05,2]
[408210411,1773246639188,-500.0,8.767e-05,2]
[408210412,1773246639198,-300.0,8.783e-05,2]
[408210413,1773246639208,-640.1384966,8.833e-05,2]
[408210414,1773246639217,-1000.21640094,8.833e-05,2]
[408210415,1773246639227,-1440.31161735,8.833e-05,2]
[408210416,1773246639241,-382.68558723,8.833e-05,2]
[408210417,1773246639251,-437.35495683,8.833e-05,2]
[408210418,1773246639261,-683.36712005,8.833e-05,2]
[408210419,1773246639271,-984.04865288,8.833e-05,2]
[408210420,1773246639281,-1339.3995553,8.833e-05,2]
[408210421,1773246639291,-1749.41982733,8.833e-05,2]
[408210422,1773246639301,-2214.10946897,8.833e-05,2]
[408210423,1773246639311,-2733.46848021,8.865e-05,2]
[408210424,1773246639320,-200.04328019,8.894e-05,2]
[408210425,1773246639333,-360.07790434,8.894e-05,2]
[408210426,1773246639343,-318.99760763,8.94e-05,2]
[408210427,1773246639352,-445.202766,8.974e-05,2]
[408210428,1773246639362,-162.380719,8.974e-05,2]
[408210429,1773246639372,-500.0,8.974e-05,2]
[408210430,1773246639382,-500.0,8.974e-05,2]
[408210431,1773246639391,-1957.856,8.974e-05,2]
[408210432,1773246639401,-162.380719,8.974e-05,2]
[408210433,1773246639411,-500.0,8.974e-05,2]
[408210434,1773246639421,-500.0,8.974e-05,2]
[408210435,1773246639430,-500.0,8.974e-05,2]
[408210436,1773246639439,-500.0,8.974e-05,2]
[408210437,1773246639450,-500.0,8.974e-05,2]
[408210438,1773246639460,-500.0,8.974e-05,2]
[408210439,1773246639469,-500.0,8.974e-05,2]
[408210440,1773246639479,-500.0,8.974e-05,2]
[408210441,1773246639488,-500.0,8.974e-05,2]
[408210442,1773246639498,-500.0,8.974e-05,2]
[408210443,1773246639508,-500.0,8.974e-05,2]
[408210444,1773246639518,-500.0,8.974e-05,2]
[408210445,1773246639528,-500.0,8.974e-05,2]
[408210446,1773246639539,-500.0,8.974e-05,2]
[408210447,1773246639549,-500.0,8.974e-05,2]
[408210448,1773246639558,-500.0,8.974e-05,2]
[408210449,1773246639568,-5376.845,8.974e-05,2]
[408210450,1773246639580,-537.6845,8.974e-05,2]
[408210451,1773246639590,-2150.738,8.974e-05,2]
[408210452,1773246639600,-500.0,8.987e-05,2]
[408210453,1773246639609,-771.0,8.987e-05,2]
[408210454,1773246639619,-500.0,8.987e-05,2]
[408210455,1773246639629,-264.71972266,8.987e-05,2]
[408210456,1773246639639,-186.89935515,8.987e-05,2]
[408210457,1773246639648,-209.36244306,8.987e-05,2]
[408210458,1773246639658,-500.0,8.987e-05,2]
[408210459,1773246639668,-500.0,8.987e-05,2]
[408210460,1773246639678,-500.0,8.987e-05,2]
[408210461,1773246639688,-284.28211844,8.987e-05,2]
[408210462,1773246639697,-500.0,8.987e-05,2]
[408210463,1773246639708,-150.0,8.987e-05,2]
[408210464,1773246639717,-150.0,8.987e-05,2]
[408210465,1773246639727,-157.27299603,8.987e-05,2]
[408210466,1773246639742,-151.73278917,8.987e-05,2]
[408210467,1773246639753,-500.0,8.987e-05,2]
[408210468,1773246639763,-155.10545423,8.987e-05,2]
[408210469,1773246639773,-171.40577125,8.987e-05,2]
[408210470,1773246639782,-194.5561245,8.987e-05,2]
[408210471,1773246639793,-500.0,8.987e-05,2]
[408210472,1773246639803,-500.0,8.987e-05,2]
[408210473,1773246639813,-239.68167397,8.987e-05,2]
[408210474,1773246639822,-289.14952089,8.987e-05,2]
[408210475,1773246639831,-352.176,8.996e-05,2]
[408210476,1773246639841,-2193.0,8.996e-05,2]
[408210477,1773246639851,-1393.0,8.996e-05,2]
[408210478,1773246639860,-435.0,8.996e-05,2]
[408210479,1773246639870,-791.768,8.996e-05,2]
[408210480,1773246639880,-787.0,9e-05,2]
[408210481,1773246639890,-2030.296672,9.029e-05,2]
[408210482,1773246639900,-5575.788265,9.029e-05,2]
[408210483,1773246639909,-500.0,9.041e-05,2]
[408210484,1773246639920,-771.0,9.042e-05,2]
[408210485,1773246639929,-500.0,9.042e-05,2]
[408210486,1773246639939,-500.0,9.042e-05,2]
[408210487,1773246639948,-500.0,9.042e-05,2]
[408210488,1773246639958,-500.0,9.042e-05,2]
[408210489,1773246639967,-500.0,9.042e-05,2]
[408210490,1773246639976,-500.0,9.042e-05,2]
[408210491,1773246639986,-150.0,9.042e-05,2]
[408210492,1773246639995,-500.0,9.042e-05,2]
[408210493,1773246640005,-500.0,9.042e-05,2]
[408210494,1773246640014,-500.0,9.042e-05,2]
[408210495,1773246640024,-155.07,9.047e-05,2]
[408210496,1773246640033,-150.0,9.047e-05,2]
[408210497,1773246640042,-150.0,9.047e-05,2]
[408210498,1773246640052,-356.85565011,9.069e-05,2]
[408210499,1773246640061,-171.511,9.075e-05,2]
[408210500,1773246640071,-1719.21573007,9.084e-05,2]
[408210501,1773246640083,-2286.96505186,9.084e-05,2]
[408210502,1773246640096,-500.0,9.097e-05,2]
[408210503,1773246640108,-771.0,9.097e-05,2]
[408210504,1773246640118,-500.0,9.097e-05,2]
[408210505,1773246640128,-600.56315041,9.097e-05,2]
[408210506,1773246640138,-500.0,9.097e-05,2]
[408210507,1773246640148,-500.0,9.097e-05,2]
[408210508,1773246640157,-349.53301485,9.097e-05,2]
[408210510,1773246640168,-172.63016517,9.097e-05,2]
[408210511,1773246640180,-500.0,9.097e-05,2]
[408210512,1773246640189,-500.0,9.097e-05,2]
[408210513,1773246640199,-491.36172523,9.097e-05,2]
[408210514,1773246640209,-300.0,9.1e-05,2]
[408210515,1773246640218,-3307.49686105,9.112e-05,2]
[408210516,1773246640227,-195.8226361,9.151e-05,2]
[408210517,1773246640237,-771.0,9.151e-05,2]
[408210518,1773246640246,-500.0,9.151e-05,2]
[408210519,1773246640256,-500.0,9.151e-05,2]
[408210521,1773246640265,-500.0,9.151e-05,2]
[408210523,1773246640275,-500.0,9.151e-05,2]
[408210525,1773246640284,-500.0,9.151e-05,2]